[Event "EIWCC 2017"]
[Site "Riga"]
[Date "2017.04.15"]
[Round "5"]
[White "Toma, Katarzyna"]
[Black "Mammadova, Gulnar"]
[Result "0-1"]
[ECO "C00"]
[WhiteElo "2229"]
[BlackElo "2357"]
[Annotator "NA"]
[PlyCount "106"]
[EventDate "2017.??.??"]
[EventType "swiss"]
[EventCountry "LAT"]
[SourceTitle "playchess.com"]
[Source "ChessBase"]
[SourceQuality "1"]
[TimeControl "40/5400+30:1800+30"]

1. e4 {[%emt 0:00:00]} e6 {[%emt 0:00:07]} 2. d3 {[%emt 0:00:00]} c5 {[%emt 0:02:21]} 3. Nf3 {[%emt 0:00:49]} d5 {[%emt 0:01:18]} 4. Nbd2 {[%emt 0:00:18]} Nc6 {[%emt 0:00:27]} 5. g3 {[%emt 0:00:49]} g6 {[%emt 0:00:14]} 6. Bg2 {[%emt 0:00:19]} Bg7 {[%emt 0:00:24]} 7. O-O {[%emt 0:00:19]} Nge7 {[%emt 0:00:15]} 8. Qe2 $11 {[%emt 0:02:18] LiveBook: 24 Games} b6 {[%emt 0:02:21]} 9. Re1 {[%emt 0:02:18]} a5 {[%emt 0:01:04]} 10. e5 {[%emt 0:07:05]} h6 {[%emt 0:06:30]} 11. Nf1 {[%emt 0:02:22]} g5 {[%emt 0:08:26]} 12. h3 {[%emt 0:16:35]} Ng6 {[%emt 0:04:28]} 13. c4 {[%emt 0:00:53]} O-O {[%emt 0:05:15]} 14. Ne3 {[%emt 0:08:38]} Ncxe5 {[%emt 0:02:58]} 15. Nxe5 {[%emt 0:00:23]} Nxe5 {[%emt 0:00:08]} 16. f4 {[%emt 0:04:03]} gxf4 {[%emt 0:04:53]} 17. gxf4 {[%emt 0:00:05]} Ng6 {[%emt 0:00:12]} 18. Ng4 {[%emt 0:04:52]} f5 {[%emt 0:03:56]} 19. Ne5 {[%emt 0:02:06]} Nxe5 {[%emt 0:01:48]} 20. fxe5 {[%emt 0:00:05]} Bb7 {[%emt 0:01:38]} 21. Bf4 {[%emt 0:02:14]} Qh4 {[%emt 0:06:26]} 22. Rf1 {[%emt 0:01:33]} Rad8 {[%emt 0:00:47]} 23. Kh2 {[%emt 0:02:08]} Rf7 {[%emt 0:02:36]} 24. Rad1 {[%emt 0:09:11]} Rfd7 {[%emt 0:02:45]} 25. b3 dxc4 {[%emt 0:03:45]} 26. Bxb7 {[%emt 0:05:21]} Rxb7 {[%emt 0:00:10]} 27. dxc4 {[%emt 0:01:30]} Rbd7 {[%emt 0:05:11]} 28. Rd6 {[%emt 0:05:27]} Rxd6 {[%emt 0:05:23]} 29. exd6 {[%emt 0:00:02]} Qf6 {[%emt 0:01:22]} 30. Rg1 {[%emt 0:06:55]} Kh7 {[%emt 0:02:49]} 31. Rxg7+ {[%emt 0:03:25]} Qxg7 {[%emt 0:00:22]} 32. Qxe6 {[%emt 0:00:13]} Qb2+ {[%emt 0:03:30]} 33. Kh1 {[%emt 0:00:38]} Qb1+ {[%emt 0:00:26]} 34. Kh2 {[%emt 0:01:33]} Qxa2+ {[%emt 0:01:25]} 35. Kh1 {[%emt 0:00:32]} Qb1+ {[%emt 0:00:05]} 36. Kh2 {[%emt 0:00:08]} Qc2+ {[%emt 0:00:10]} 37. Kh1 {[%emt 0:00:08]} Qe4+ {[%emt 0:00:31]} 38. Qxe4 {[%emt 0:00:05]} fxe4 {[%emt 0:00:04]} 39. Kg2 {[%emt 0:00:06]} Kg6 {[%emt 0:00:41]} 40. Kf2 {[%emt 0:00:00]} Kf5 {[%emt 0:01:25]} 41. Ke3 {[%emt 0:00:21]} Rd7 {[%emt 0:02:22]} 42. Bh2 {[%emt 0:00:29]} h5 {[%emt 0:00:33]} 43. Bf4 {[%emt 0:00:09]} Ra7 {[%emt 0:01:02]} 44. Bh2 {[%emt 0:01:24]} a4 {[%emt 0:03:48]} 45. bxa4 {[%emt 0:00:18]} Rxa4 {[%emt 0:00:15]} 46. d7 {[%emt 0:01:26]} Ra3+ {[%emt 0:00:08]} 47. Ke2 {[%emt 0:00:03]} Rd3 {[%emt 0:00:05]} 48. Bc7 {[%emt 0:00:20]} Rxd7 {[%emt 0:00:05]} 49. Bxb6 {[%emt 0:00:05]} Rd3 {[%emt 0:00:34]} 50. Bxc5 {[%emt 0:00:17]} Rxh3 {[%emt 0:00:12]} 51. Be3 {[%emt 0:00:41]} Ke5 {[%emt 0:00:28]} 52. c5 {[%emt 0:01:09]} Kd5 {[%emt 0:00:17]} 53. Bg1 {[%emt 0:00:48]} Rc3 {[%emt 0:00:41]} 0-1

[Event "EIWCC 2017"]
[Site "Riga"]
[Date "2017.04.15"]
[Round "5"]
[White "Gevorgyan, Maria"]
[Black "Bulmaga, Irina"]
[Result "0-1"]
[ECO "C11"]
[WhiteElo "2227"]
[BlackElo "2394"]
[Annotator "NA"]
[PlyCount "74"]
[EventDate "2017.??.??"]
[EventType "swiss"]
[EventCountry "LAT"]
[SourceTitle "playchess.com"]
[Source "ChessBase"]
[SourceQuality "1"]
[TimeControl "40/5400+30:1800+30"]

1. e4 {[%emt 0:00:00]} e6 {[%emt 0:00:08]} 2. d4 {[%emt 0:00:00]} d5 {[%emt 0:00:08]} 3. Nc3 {[%emt 0:00:00]} Nf6 {[%emt 0:00:07]} 4. Bg5 {[%emt 0:00:03]} dxe4 {[%emt 0:00:09]} 5. Nxe4 {[%emt 0:00:11]} Be7 {[%emt 0:00:08]} 6. Bxf6 {[%emt 0:03:18]} gxf6 {[%emt 0:00:08]} 7. f4 {[%emt 0:01:01]} f5 {[%emt 0:02:18]} 8. Nf2 {[%emt 0:02:17]} Qd6 {[%emt 0:02:53]} 9. Qd2 {[%emt 0:00:41]} c5 {[%emt 0:02:50]} 10. Nf3 {[%emt 0:02:48]} Nc6 {[%emt 0:07:23]} 11. O-O-O {[%emt 0:07:51]} cxd4 {[%emt 0:04:04]} 12. Bb5 {[%emt 0:06:17]} ({But not} 12. Nxd4 $2 Qxd4 13. Qxd4 Nxd4 14. Rxd4 Bc5 15. Bb5+ Ke7 $19) 12... Bd7 {[%emt 0:06:04]} 13. Rhg1 {[%emt 0:08:49]} O-O-O {[%emt 0:04:48]} 14. Bxc6 {[%emt 0:04:56]} Bxc6 {[%emt 0:01:55]} ({Don't do} 14... Qxc6 15. Nxd4 Qb6 16. g4 $15) 15. Nxd4 $17 {[%emt 0:01:25]} Bf6 {[%emt 0:05:44]} 16. c3 {[%emt 0:08:04]} Bxd4 {[%emt 0:13:51]} 17. Qxd4 {[%emt 0:11:27]} Qxd4 {[%emt 0:00:33]} 18. cxd4 {[%emt 0:00:02]} Rd7 {[%emt 0:11:21]} 19. Kc2 {[%emt 0:01:24]} Rhd8 {[%emt 0:00:35]} 20. Kc3 {[%emt 0:00:12]} Rc7 {[%emt 0:00:26]} 21. Kd3 {[%emt 0:00:16]} Bd5 {[%emt 0:08:15]} 22. b3 {[%emt 0:01:20]} Rd6 {[%emt 0:00:50]} 23. Rc1 {[%emt 0:10:36]} Ra6 {[%emt 0:01:06]} 24. Rxc7+ {[%emt 0:12:30]} Kxc7 {[%emt 0:03:01]} 25. Rc1+ {[%emt 0:02:55]} Kd7 {[%emt 0:00:17]} 26. Rc2 {[%emt 0:00:06]} Bxg2 {[%emt 0:00:18]} 27. Ke3 {[%emt 0:00:05]} Rc6 {[%emt 0:01:16]} 28. Rxc6 {[%emt 0:03:21]} Kxc6 {[%emt 0:00:21]} 29. Nd3 {[%emt 0:00:04]} f6 {[%emt 0:00:32]} 30. Kf2 {[%emt 0:01:56]} Be4 {[%emt 0:00:39]} 31. Nc5 {[%emt 0:00:04]} Bd5 {[%emt 0:01:27]} 32. Nd3 {[%emt 0:00:49]} b6 {[%emt 0:00:37]} 33. Nc1 {[%emt 0:01:03]} Kb5 {[%emt 0:00:44]} 34. Ne2 {[%emt 0:03:33]} Kb4 {[%emt 0:00:43]} 35. Ng3 {[%emt 0:00:05]} Ka3 {[%emt 0:02:48]} 36. Nh5 {[%emt 0:00:04]} Kxa2 {[%emt 0:00:31]} 37. Nxf6 {[%emt 0:00:04]} Kxb3 {[%emt 0:00:25]} 0-1

[Event "EIWCC 2017"]
[Site "Riga"]
[Date "2017.04.15"]
[Round "5"]
[White "Semenova, Elena"]
[Black "Milliet, Sophie"]
[Result "1-0"]
[ECO "A57"]
[WhiteElo "2212"]
[BlackElo "2352"]
[Annotator "NA"]
[PlyCount "79"]
[EventDate "2017.??.??"]
[EventType "swiss"]
[EventCountry "LAT"]
[SourceTitle "playchess.com"]
[Source "ChessBase"]
[SourceQuality "1"]
[TimeControl "40/5400+30:1800+30"]

1. d4 {[%emt 0:00:00]} c5 {[%emt 0:01:43]} 2. d5 {[%emt 0:00:27]} Nf6 {[%emt 0:00:17]} 3. c4 {[%emt 0:00:56]} b5 {[%emt 0:00:15]} 4. Qc2 {[%emt 0:04:31]} g6 $14 {[%emt 0:01:29] LiveBook: 43 Games} 5. e4 {[%emt 0:01:56]} Bg7 {[%emt 0:00:11]} 6. Nf3 {[%emt 0:03:55]} O-O {[%emt 0:00:06]} 7. cxb5 {[%emt 0:01:08]} Bb7 {[%emt 0:00:29]} 8. Bd3 {[%emt 0:06:17]} e6 {[%emt 0:03:34]} 9. O-O {[%emt 0:06:35]} exd5 {[%emt 0:01:10]} 10. e5 {[%emt 0:13:30]} Ne4 {[%emt 0:01:49]} 11. Nbd2 {[%emt 0:02:26]} Nxd2 {[%emt 0:04:35]} 12. Bxd2 {[%emt 0:00:05]} c4 {[%emt 0:00:22]} 13. Be2 {[%emt 0:00:29]} a6 {[%emt 0:00:14]} 14. a4 {[%emt 0:07:55]} Re8 {[%emt 0:04:22]} 15. Bc3 {[%emt 0:06:07]} Qe7 {[%emt 0:17:53]} 16. b3 {[%emt 0:08:09]} axb5 {[%emt 0:18:04]} 17. axb5 {[%emt 0:01:10]} Rxa1 {[%emt 0:02:01]} 18. Rxa1 {[%emt 0:00:04]} Qc5 {[%emt 0:02:02]} 19. Bd4 {[%emt 0:03:29]} Qxb5 {[%emt 0:00:10]} 20. bxc4 {[%emt 0:00:06]} Qc6 {[%emt 0:03:47]} 21. Qb3 {[%emt 0:03:27]} Rc8 {[%emt 0:12:44]} 22. Rb1 {[%emt 0:05:38]} Ba8 {[%emt 0:00:07]} 23. Be3 {[%emt 0:03:04]} d4 {[%emt 0:02:24]} 24. Bxd4 {[%emt 0:01:08]} Na6 {[%emt 0:01:34]} 25. Qe3 {[%emt 0:00:29]} Nc7 {[%emt 0:00:46]} 26. Rb6 {[%emt 0:02:40]} Qa4 {[%emt 0:00:04]} 27. Ng5 {[%emt 0:01:31]} Bh6 {[%emt 0:06:19]} 28. e6 {[%emt 0:03:14]} Nxe6 {[%emt 0:02:11]} 29. Rxe6 {[%emt 0:00:41]} dxe6 30. Qe5 {[%emt 0:00:18]} Kf8 {[%emt 0:00:14]} 31. Qh8+ {[%emt 0:02:01]} Ke7 {[%emt 0:00:01]} 32. Qf6+ Kd6 {[%emt 0:01:41]} 33. Nxf7+ {[%emt 0:01:26]} Kd7 {[%emt 0:00:09]} 34. Ne5+ {[%emt 0:01:10]} Kd6 {[%emt 0:00:28]} 35. c5+ {[%emt 0:03:33]} Kd5 {[%emt 0:02:12]} 36. Nc4 {[%emt 0:00:34]} Qa7 {[%emt 0:03:25]} 37. Qe5+ {[%emt 0:01:30]} Kc6 {[%emt 0:00:00]} 38. Qxe6+ {[%emt 0:00:26]} Kb5 {[%emt 0:00:22]} 39. Nd6+ {[%emt 0:00:38]} Kb4 {[%emt 0:00:22]} 40. Qc4+ {[%emt 0:00:00]} 1-0

[Event "EIWCC 2017"]
[Site "Riga"]
[Date "2017.04.15"]
[Round "5"]
[White "Isgandarova, Khayala"]
[Black "Osmak, Iulija"]
[Result "0-1"]
[ECO "C11"]
[WhiteElo "2211"]
[BlackElo "2348"]
[Annotator "ChessBase"]
[PlyCount "46"]
[EventDate "2017.??.??"]
[EventType "swiss"]
[EventCountry "LAT"]
[SourceTitle "playchess.com"]
[Source "ChessBase"]
[SourceQuality "1"]
[TimeControl "40/5400+30:1800+30"]

1. e4 {[%emt 0:00:00]} e6 {[%emt 0:02:06]} 2. d4 {[%emt 0:00:00]} d5 {[%emt 0:00:06]} 3. Nc3 {[%emt 0:00:00]} Nf6 {[%emt 0:00:04]} 4. e5 {[%emt 0:00:00]} Nfd7 {[%emt 0:00:05]} 5. f4 {[%emt 0:00:00]} c5 {[%emt 0:00:04]} 6. Nf3 {[%emt 0:00:08]} Be7 {[%emt 0:00:18]} 7. Be2 {[%emt 0:00:31]} Nc6 {[%emt 0:00:19]} 8. Be3 {[%emt 0:00:04]} b6 {[%emt 0:00:28]} 9. Qd2 {[%emt 0:02:13]} O-O {[%emt 0:00:25]} 10. O-O {[%emt 0:00:38]} f5 {[%emt 0:00:27]} 11. exf6 {[%emt 0:08:05]} Nxf6 {[%emt 0:00:22]} 12. Bb5 {[%emt 0:10:31]} Na5 {[%emt 0:03:21]} 13. Ne5 {[%emt 0:04:45]} c4 {[%emt 0:01:36]} 14. Nc6 {[%emt 0:10:52]} Nxc6 {[%emt 0:23:40]} 15. Bxc6 {[%emt 0:00:05]} Rb8 {[%emt 0:00:04]} 16. f5 {[%emt 0:01:03]} Qc7 {[%emt 0:04:01]} 17. Bf4 {[%emt 0:03:19]} Bd6 {[%emt 0:01:59]} 18. Bxd6 {[%emt 0:17:29]} Qxd6 {[%emt 0:00:40]} 19. Qf4 {[%emt 0:00:20]} Rd8 {[%emt 0:03:35]} 20. fxe6 {[%emt 0:10:08]} Bxe6 {[%emt 0:03:23]} 21. Qg5 {[%emt 0:06:42]} Ng4 {[%emt 0:05:12]} 22. g3 {[%emt 0:06:06]} Qxc6 {[%emt 0:00:47]} 23. h3 {[%emt 0:00:43]} Nh6 {[%emt 0:00:32]} 0-1

[Event "EIWCC 2017"]
[Site "Riga"]
[Date "2017.04.15"]
[Round "5"]
[White "Paramzina, Anastasya"]
[Black "Houska, Jovanka"]
[Result "0-1"]
[ECO "B18"]
[WhiteElo "2202"]
[BlackElo "2397"]
[Annotator "ChessBase"]
[PlyCount "156"]
[EventDate "2017.??.??"]
[EventType "swiss"]
[EventCountry "LAT"]
[SourceTitle "playchess.com"]
[Source "ChessBase"]
[SourceQuality "1"]
[TimeControl "40/5400+30:1800+30"]

1. e4 {[%emt 0:03:17]} c6 {[%emt 0:00:04]} 2. d4 {[%emt 0:00:06]} d5 {[%emt 0:00:03]} 3. Nc3 {[%emt 0:00:05]} dxe4 {[%emt 0:00:07]} 4. Nxe4 {[%emt 0:00:03]} Bf5 {[%emt 0:00:04]} 5. Ng3 {[%emt 0:00:06]} Bg6 {[%emt 0:00:04]} 6. h4 {[%emt 0:00:06]} h6 {[%emt 0:00:03]} 7. h5 {[%emt 0:00:05]} Bh7 {[%emt 0:00:08]} 8. Nf3 {[%emt 0:00:05]} Nd7 {[%emt 0:01:24]} 9. Bd3 {[%emt 0:00:16]} Bxd3 {[%emt 0:00:05]} 10. Qxd3 {[%emt 0:00:05]} e6 {[%emt 0:00:04]} 11. Bd2 {[%emt 0:00:15]} Ngf6 {[%emt 0:00:08]} 12. O-O-O {[%emt 0:00:20]} Be7 {[%emt 0:00:03]} 13. Ne4 {[%emt 0:00:12]} Nxe4 {[%emt 0:00:15]} 14. Qxe4 {[%emt 0:00:06]} Nf6 {[%emt 0:00:03]} 15. Qd3 {[%emt 0:02:26]} c5 {[%emt 0:00:04]} 16. Qb5+ {[%emt 0:04:43]} Qd7 {[%emt 0:00:06]} 17. Qxd7+ {[%emt 0:00:05]} Nxd7 {[%emt 0:00:03]} 18. Rhe1 {[%emt 0:04:16]} Nf6 {[%emt 0:03:15]} 19. Rh1 {[%emt 0:12:08]} cxd4 {[%emt 0:11:51]} 20. Nxd4 {[%emt 0:05:02]} O-O-O {[%emt 0:08:16]} 21. Nb5 Rd5 22. c4 {[%emt 0:17:57]} Rc5 {[%emt 0:33:56]} 23. Nxa7+ {[%emt 0:04:23]} Kb8 {[%emt 0:00:03]} 24. Nb5 {[%emt 0:00:06]} Rxc4+ {[%emt 0:00:04]} 25. Kb1 Rc5 {[%emt 0:11:32]} 26. a4 {[%emt 0:03:06]} Nd5 {[%emt 0:04:21]} 27. f3 {[%emt 0:04:15]} Rd8 28. g4 {[%emt 0:04:23]} b6 {[%emt 0:02:53]} 29. Rc1 {[%emt 0:02:03]} Kb7 {[%emt 0:00:58]} 30. Rhd1 {[%emt 0:04:34]} Ra8 {[%emt 0:08:44]} 31. b3 {[%emt 0:01:14]} Rd8 32. Be1 f5 {[%emt 0:10:24]} 33. Bd2 {[%emt 0:21:33]} fxg4 {[%emt 0:02:09]} 34. fxg4 {[%emt 0:00:51]} Rf8 {[%emt 0:02:08]} 35. Nd4 {[%emt 0:01:07]} Nc7 {[%emt 0:02:20]} 36. b4 {[%emt 0:02:45]} Rxc1+ {[%emt 0:00:17]} 37. Kxc1 {[%emt 0:02:32]} Rf2 {[%emt 0:00:39]} 38. b5 {[%emt 0:00:54]} Bf6 {[%emt 0:01:03]} 39. Nc2 {[%emt 0:01:59]} Nd5 {[%emt 0:00:53]} 40. Re1 {[%emt 0:00:00]} Nf4 {[%emt 0:01:16]} 41. Kd1 {[%emt 0:12:07]} e5 {[%emt 0:06:58]} 42. Nb4 Rg2 {[%emt 0:04:04]} 43. Bxf4 {[%emt 0:07:15]} exf4 {[%emt 0:00:07]} 44. Nd5 {[%emt 0:10:18]} Bg5 {[%emt 0:07:58]} 45. Re5 f3 {[%emt 0:08:43]} 46. Rf5 {[%emt 0:00:43]} Rd2+ {[%emt 0:00:59]} 47. Ke1 {[%emt 0:00:03]} f2+ 48. Kf1 {[%emt 0:00:23]} Bh4 {[%emt 0:00:09]} 49. Ne3 {[%emt 0:01:35]} Ra2 {[%emt 0:00:15]} 50. Rf7+ {[%emt 0:01:14]} Kc8 {[%emt 0:00:07]} 51. Rf4 {[%emt 0:01:04]} Ra3 {[%emt 0:04:48]} 52. Nd1 {[%emt 0:00:25]} Ra1 {[%emt 0:00:18]} 53. Ke2 {[%emt 0:00:06]} Kd8 {[%emt 0:00:54]} 54. Nxf2 {[%emt 0:01:48]} Ra2+ {[%emt 0:00:04]} 55. Kf1 {[%emt 0:00:14]} Bxf2 {[%emt 0:00:07]} 56. Rxf2 {[%emt 0:00:04]} Rxa4 {[%emt 0:00:03]} 57. Rg2 {[%emt 0:01:56]} Rb4 {[%emt 0:00:15]} 58. Rd2+ {[%emt 0:00:46]} Ke7 {[%emt 0:00:08]} 59. Re2+ {[%emt 0:00:15]} Kf6 {[%emt 0:00:20]} 60. Rf2+ {[%emt 0:00:07]} Kg5 {[%emt 0:00:06]} 61. Rd2 {[%emt 0:00:55]} Rf4+ {[%emt 0:01:05]} 62. Ke2 {[%emt 0:00:09]} Rxg4 {[%emt 0:00:06]} 63. Rd6 {[%emt 0:00:09]} Kxh5 {[%emt 0:00:08]} 64. Rxb6 {[%emt 0:00:04]} Rb4 {[%emt 0:00:43]} 65. Kf3 {[%emt 0:00:53]} g5 {[%emt 0:01:42]} 66. Kg3 {[%emt 0:00:49]} Rb3+ {[%emt 0:00:11]} 67. Kg2 {[%emt 0:00:31]} g4 {[%emt 0:00:05]} 68. Rb8 {[%emt 0:00:18]} Kh4 {[%emt 0:00:06]} 69. b6 {[%emt 0:00:47]} h5 {[%emt 0:00:40]} 70. b7 {[%emt 0:00:06]} Rb2+ {[%emt 0:00:16]} 71. Kf1 g3 {[%emt 0:02:53]} 72. Rc8 {[%emt 0:02:06]} Rxb7 {[%emt 0:00:16]} 73. Rc5 {[%emt 0:00:10]} Kg4 {[%emt 0:00:13]} 74. Kg2 {[%emt 0:00:03]} Rb2+ {[%emt 0:00:08]} 75. Kf1 {[%emt 0:00:08]} h4 {[%emt 0:00:08]} 76. Rc1 h3 {[%emt 0:00:39]} 77. Kg1 {[%emt 0:00:24]} h2+ {[%emt 0:00:34]} 78. Kh1 {[%emt 0:00:04]} Kh3 {[%emt 0:00:04]} 0-1

[Event "EIWCC 2017"]
[Site "Riga"]
[Date "2017.04.15"]
[Round "5"]
[White "Utiatskaja, Irina"]
[Black "Osmanodja, Filiz"]
[Result "1-0"]
[ECO "E46"]
[WhiteElo "2152"]
[BlackElo "2370"]
[Annotator "NA"]
[PlyCount "121"]
[EventDate "2017.??.??"]
[EventType "swiss"]
[EventCountry "LAT"]
[SourceTitle "playchess.com"]
[Source "ChessBase"]
[SourceQuality "1"]
[TimeControl "40/5400+30:1800+30"]

1. d4 {[%emt 0:00:00]} Nf6 {[%emt 0:00:56]} 2. c4 {[%emt 0:00:00]} e6 {[%emt 0:00:12]} 3. Nc3 {[%emt 0:00:04]} Bb4 {[%emt 0:00:27]} 4. e3 {[%emt 0:00:20]} O-O {[%emt 0:00:07]} 5. Nge2 {[%emt 0:00:04]} d5 {[%emt 0:01:34]} 6. a3 {[%emt 0:00:11]} Be7 {[%emt 0:02:45]} 7. cxd5 {[%emt 0:00:09]} exd5 {[%emt 0:00:02]} 8. Nf4 {[%emt 0:00:11]} Re8 {[%emt 0:06:44]} 9. Bd3 {[%emt 0:01:31]} Bd6 {[%emt 0:02:04]} 10. O-O {[%emt 0:03:34]} Bxf4 {[%emt 0:00:08]} 11. exf4 {[%emt 0:00:04]} Nc6 {[%emt 0:03:20]} 12. Be3 {[%emt 0:12:32]} Ne7 {[%emt 0:09:30]} 13. Re1 {[%emt 0:05:24]} Bf5 {[%emt 0:03:40]} 14. Bf1 {[%emt 0:04:17]} c6 {[%emt 0:10:27]} 15. h3 {[%emt 0:01:34]} h5 {[%emt 0:00:51]} 16. g3 {[%emt 0:04:23]} Qd7 {[%emt 0:03:36]} 17. Kh2 {[%emt 0:00:18]} Nc8 {[%emt 0:01:13]} 18. f3 {[%emt 0:03:41]} Nd6 {[%emt 0:07:37]} 19. b3 {[%emt 0:00:44]} Re7 {[%emt 0:15:21]} 20. Qd2 {[%emt 0:04:24]} Rae8 {[%emt 0:02:48]} 21. Nd1 {[%emt 0:02:24]} Qc7 {[%emt 0:03:24]} 22. Nf2 {[%emt 0:07:20]} h4 {[%emt 0:13:41]} 23. g4 {[%emt 0:03:13]} Bc2 {[%emt 0:04:56]} 24. Kg2 {[%emt 0:08:56]} Bxb3 {[%emt 0:00:34]} 25. Qc3 {[%emt 0:00:26]} Bc4 {[%emt 0:00:57]} 26. Bd2 {[%emt 0:01:19]} Rxe1 {[%emt 0:02:27]} 27. Bxe1 {[%emt 0:00:57]} Nb5 {[%emt 0:01:10]} 28. Qd2 {[%emt 0:00:04]} Bxf1+ {[%emt 0:00:49]} 29. Kxf1 {[%emt 0:00:03]} Qb6 {[%emt 0:00:37]} 30. Rd1 {[%emt 0:00:15]} Nxa3 {[%emt 0:00:21]} 31. Rc1 {[%emt 0:02:13]} Qc7 {[%emt 0:01:03]} 32. Nd3 {[%emt 0:00:21]} Nc4 {[%emt 0:00:25]} 33. Qf2 {[%emt 0:01:29]} Qb6 {[%emt 0:00:57]} 34. Ne5 {[%emt 0:00:56]} Nxe5 {[%emt 0:01:05]} 35. fxe5 {[%emt 0:00:03]} Nd7 {[%emt 0:00:14]} 36. f4 {[%emt 0:01:09]} Rc8 {[%emt 0:01:29]} 37. Kg2 {[%emt 0:01:25]} c5 {[%emt 0:00:16]} 38. f5 {[%emt 0:08:12]} Rc6 {[%emt 0:00:16]} 39. f6 {[%emt 0:00:51]} gxf6 {[%emt 0:00:42]} 40. Qf5 {[%emt 0:00:00]} Nf8 {[%emt 0:01:04]} 41. Bxh4 {[%emt 0:02:18]} Qb2+ {[%emt 0:06:19]} 42. Rc2 {[%emt 0:00:11]} Qxd4 {[%emt 0:00:03]} 43. Re2 {[%emt 0:00:08]} Ng6 {[%emt 0:02:06]} 44. Bxf6 {[%emt 0:01:54]} Qd3 {[%emt 0:07:56]} 45. Rf2 {[%emt 0:02:43]} Qe4+ {[%emt 0:06:45]} 46. Kh2 {[%emt 0:00:32]} Qxf5 {[%emt 0:05:28]} 47. gxf5 {[%emt 0:00:08]} Nxe5 {[%emt 0:02:43]} 48. Bxe5 {[%emt 0:00:06]} f6 {[%emt 0:00:03]} 49. Bf4 {[%emt 0:03:08]} b5 {[%emt 0:00:09]} 50. Rg2+ {[%emt 0:01:10]} Kh7 {[%emt 0:01:20]} 51. Re2 {[%emt 0:00:45]} a5 {[%emt 0:02:11]} 52. Re7+ {[%emt 0:00:13]} Kg8 {[%emt 0:00:01]} 53. Rb7 {[%emt 0:02:56]} b4 {[%emt 0:00:01]} 54. Rb8+ {[%emt 0:00:28]} Kf7 {[%emt 0:00:04]} 55. Rb7+ {[%emt 0:00:17]} Ke8 {[%emt 0:00:09]} 56. h4 {[%emt 0:01:33]} Rc8 {[%emt 0:01:59]} 57. Bd6 {[%emt 0:02:43]} b3 {[%emt 0:00:22]} 58. h5 {[%emt 0:02:27]} b2 {[%emt 0:00:03]} 59. h6 {[%emt 0:00:07]} b1=Q {[%emt 0:00:05]} 60. Rxb1 {[%emt 0:00:03]} Kd7 {[%emt 0:00:38]} 61. Rb8 {[%emt 0:02:14]} 1-0

[Event "EIWCC 2017"]
[Site "Riga"]
[Date "2017.04.15"]
[Round "5"]
[White "Petrenko, Svetlana"]
[Black "Gvetadze, Sofio"]
[Result "1-0"]
[ECO "E32"]
[WhiteElo "2136"]
[BlackElo "2292"]
[Annotator "ChessBase"]
[PlyCount "137"]
[EventDate "2017.??.??"]
[EventType "swiss"]
[EventCountry "LAT"]
[SourceTitle "playchess.com"]
[Source "ChessBase"]
[SourceQuality "1"]
[TimeControl "40/5400+30:1800+30"]

1. d4 {[%emt 0:00:00]} Nf6 {[%emt 0:00:33]} 2. c4 {[%emt 0:00:02]} e6 {[%emt 0:00:21]} 3. Nc3 {[%emt 0:00:46]} Bb4 {[%emt 0:00:24]} 4. Qc2 {[%emt 0:02:54]} O-O {[%emt 0:00:30]} 5. a3 {[%emt 0:00:33]} Bxc3+ {[%emt 0:00:40]} 6. Qxc3 {[%emt 0:00:41]} Ne4 {[%emt 0:01:01]} 7. Qc2 {[%emt 0:01:12]} f5 {[%emt 0:01:49]} 8. Nf3 {[%emt 0:02:08]} d6 {[%emt 0:02:23]} 9. g3 {[%emt 0:08:20]} Nd7 {[%emt 0:01:17]} 10. Bg2 {[%emt 0:00:28]} Qe8 {[%emt 0:06:04]} 11. h4 {[%emt 0:06:02]} h6 {[%emt 0:04:12]} 12. Be3 {[%emt 0:06:08]} Ndf6 {[%emt 0:02:20]} 13. Nd2 {[%emt 0:01:09]} e5 {[%emt 0:19:58]} 14. dxe5 {[%emt 0:15:39]} Qxe5 {[%emt 0:00:38]} 15. Bf4 {[%emt 0:01:10]} Qe7 {[%emt 0:01:58]} 16. Nxe4 {[%emt 0:09:43]} Nxe4 {[%emt 0:02:17]} 17. h5 {[%emt 0:12:29]} a5 {[%emt 0:03:28]} 18. a4 {[%emt 0:09:49]} Bd7 {[%emt 0:00:35]} 19. Bf3 {[%emt 0:01:16]} Bc6 {[%emt 0:04:50]} 20. Kf1 {[%emt 0:00:39]} Nc5 {[%emt 0:02:38]} 21. Kg2 {[%emt 0:03:57]} Rae8 {[%emt 0:07:31]} 22. e3 {[%emt 0:03:25]} Bxf3+ {[%emt 0:16:31]} 23. Kxf3 {[%emt 0:00:02]} Qd7 {[%emt 0:00:35]} 24. Kg2 {[%emt 0:02:10]} Rf7 {[%emt 0:01:29]} 25. Rhd1 {[%emt 0:02:39]} Rf6 {[%emt 0:03:53]} 26. Rd5 {[%emt 0:00:47]} Qf7 {[%emt 0:00:44]} 27. Rh1 {[%emt 0:00:52]} b6 {[%emt 0:01:04]} 28. b3 {[%emt 0:01:36]} Qd7 {[%emt 0:01:44]} 29. Rh4 {[%emt 0:01:04]} Ne6 {[%emt 0:02:40]} 30. Be5 {[%emt 0:02:57]} Rff8 {[%emt 0:00:38]} 31. Bb2 {[%emt 0:00:29]} Ng5 {[%emt 0:01:18]} 32. Rf4 {[%emt 0:00:57]} Re4 {[%emt 0:00:34]} 33. g4 {[%emt 0:01:15]} Rxf4 {[%emt 0:02:19]} 34. exf4 {[%emt 0:00:26]} Ne6 {[%emt 0:01:48]} 35. Rxf5 {[%emt 0:00:20]} Nxf4+ {[%emt 0:00:16]} 36. Kf3 {[%emt 0:02:00]} Rxf5 {[%emt 0:01:22]} 37. gxf5 {[%emt 0:00:02]} Nxh5 {[%emt 0:00:16]} 38. Qe4 {[%emt 0:01:40]} Qf7 {[%emt 0:00:43]} 39. Qa8+ {[%emt 0:00:49]} Kh7 {[%emt 0:00:16]} 40. Qe4 {[%emt 0:00:00]} Nf6 {[%emt 0:00:52]} 41. Qe6 {[%emt 0:03:32]} Qh5+ {[%emt 0:20:02]} 42. Ke3 {[%emt 0:02:51]} Qg5+ {[%emt 0:00:07]} 43. Kd3 {[%emt 0:01:35]} h5 {[%emt 0:00:34]} 44. Bd4 {[%emt 0:02:02]} h4 {[%emt 0:01:16]} 45. f4 {[%emt 0:07:39]} Qg3+ {[%emt 0:00:34]} 46. Kc2 {[%emt 0:00:25]} Qg2+ {[%emt 0:00:41]} 47. Kc3 {[%emt 0:08:49]} Ne4+ {[%emt 0:10:50]} 48. Kd3 {[%emt 0:00:01]} Qf3+ {[%emt 0:04:36]} 49. Kc2 {[%emt 0:00:08]} Qe2+ {[%emt 0:00:34]} 50. Kc1 {[%emt 0:01:44]} Qf1+ {[%emt 0:00:29]} 51. Kc2 {[%emt 0:01:48]} Qg2+ {[%emt 0:00:02]} 52. Kd3 {[%emt 0:00:17]} h3 {[%emt 0:00:11]} 53. Qf7 {[%emt 0:05:44]} Qf3+ {[%emt 0:00:07]} 54. Kc2 {[%emt 0:00:50]} Qe2+ {[%emt 0:00:18]} 55. Kc1 {[%emt 0:00:23]} Qd2+ {[%emt 0:01:55]} 56. Kb1 {[%emt 0:00:02]} Qd1+ {[%emt 0:00:03]} 57. Ka2 {[%emt 0:00:12]} Qc2+ {[%emt 0:01:17]} 58. Ka3 {[%emt 0:00:43]} Qc1+ {[%emt 0:00:09]} 59. Bb2 {[%emt 0:00:19]} Qg1 {[%emt 0:00:02]} 60. Qh5+ {[%emt 0:00:19]} Kg8 {[%emt 0:00:01]} 61. Qe8+ {[%emt 0:00:18]} Kh7 {[%emt 0:00:01]} 62. Qxe4 {[%emt 0:01:49]} h2 {[%emt 0:00:01]} 63. f6+ {[%emt 0:00:04]} Kh6 {[%emt 0:00:10]} 64. f7 {[%emt 0:00:28]} d5 {[%emt 0:01:01]} 65. Qe6+ {[%emt 0:00:20]} Kh5 {[%emt 0:00:17]} 66. Qxd5+ {[%emt 0:00:39]} g5 {[%emt 0:00:12]} 67. f8=Q {[%emt 0:00:11]} h1=Q {[%emt 0:00:06]} 68. Qxh1+ {[%emt 0:00:14]} Qxh1 {[%emt 0:00:03]} 69. Qh8+ {[%emt 0:00:10]} 1-0